Workbook

Sheet Cover
B3: Excel + VBA
B4: für Controller
B7: Kapitel | C7: 4
B8: Thema | C8: Methoden der Datenaufbereitung
B10: Inhalt | C10: SVERWEIS + WAHL
C11: Zusammenstellung von Daten
C12: mit SVERWEIS + WAHL
B18: Autor | C18: Harald Nahrstedt
B19: Datum | C19: 2019-01-01
B20: Version | C20: 1.0
B23: Springer Verlag

Sheet Personalkosten
A1: Produkt | B1: Bauteil | C1: Anzahl | D1: Std | E1: Lohn | F1: MNr | G1: MSatz | H1: LKosten | I1: MKosten | J1: GKosten
A2: A | B2: 1 | C2: 7 | D2: 3.5 | E2: 29.8 | F2: 6 | G2: =VLOOKUP(Produktion[[#This Row],[MNr]],Maschinenkosten,2) -> 41.28 | H2: =Produktion[Std]*Produktion[Lohn] -> 104.3 | I2: =Produktion[Std]*Produktion[MSatz] -> 144.48 | J2: =Produktion[LKosten]+Produktion[MKosten] -> 248.78
A3: A | B3: 2 | C3: 1 | D3: 4.3 | E3: 69.52 | F3: 1 | G3: =VLOOKUP(Produktion[[#This Row],[MNr]],Maschinenkosten,2) -> 31.25 | H3: =Produktion[Std]*Produktion[Lohn] -> 298.936 | I3: =Produktion[Std]*Produktion[MSatz] -> 134.375 | J3: =Produktion[LKosten]+Produktion[MKosten] -> 433.311
A4: A | B4: 1 | C4: 4 | D4: 2.5 | E4: 27.45 | F4: 5 | G4: =VLOOKUP(Produktion[[#This Row],[MNr]],Maschinenkosten,2) -> 39.96 | H4: =Produktion[Std]*Produktion[Lohn] -> 68.625 | I4: =Produktion[Std]*Produktion[MSatz] -> 99.9 | J4: =Produktion[LKosten]+Produktion[MKosten] -> 168.525
A5: A | B5: 3 | C5: 2 | D5: 4.4 | E5: 76.31 | F5: 14 | G5: =VLOOKUP(Produktion[[#This Row],[MNr]],Maschinenkosten,2) -> 53.4 | H5: =Produktion[Std]*Produktion[Lohn] -> 335.764 | I5: =Produktion[Std]*Produktion[MSatz] -> 234.96 | J5: =Produktion[LKosten]+Produktion[MKosten] -> 570.724
A6: A | B6: 4 | C6: 0 | D6: 6.9 | E6: 57.09 | F6: 16 | G6: =VLOOKUP(Produktion[[#This Row],[MNr]],Maschinenkosten,2) -> 30.78 | H6: =Produktion[Std]*Produktion[Lohn] -> 393.921 | I6: =Produktion[Std]*Produktion[MSatz] -> 212.382 | J6: =Produktion[LKosten]+Produktion[MKosten] -> 606.303
A7: A | B7: 5 | C7: 17 | D7: 9.5 | E7: 85.88 | F7: 16 | G7: =VLOOKUP(Produktion[[#This Row],[MNr]],Maschinenkosten,2) -> 30.78 | H7: =Produktion[Std]*Produktion[Lohn] -> 815.86 | I7: =Produktion[Std]*Produktion[MSatz] -> 292.41 | J7: =Produktion[LKosten]+Produktion[MKosten] -> 1108.27
A8: A | B8: 6 | C8: 1 | D8: 7.5 | E8: 79.51 | F8: 1 | G8: =VLOOKUP(Produktion[[#This Row],[MNr]],Maschinenkosten,2) -> 31.25 | H8: =Produktion[Std]*Produktion[Lohn] -> 596.325 | I8: =Produktion[Std]*Produktion[MSatz] -> 234.375 | J8: =Produktion[LKosten]+Produktion[MKosten] -> 830.7
A9: A | B9: 7 | C9: 7 | D9: 4.8 | E9: 86.93 | F9: 15 | G9: =VLOOKUP(Produktion[[#This Row],[MNr]],Maschinenkosten,2) -> 50.73 | H9: =Produktion[Std]*Produktion[Lohn] -> 417.264 | I9: =Produktion[Std]*Produktion[MSatz] -> 243.504 | J9: =Produktion[LKosten]+Produktion[MKosten] -> 660.768
A10: A | B10: 8 | C10: 19 | D10: 1.4 | E10: 27.68 | F10: 15 | G10: =VLOOKUP(Produktion[[#This Row],[MNr]],Maschinenkosten,2) -> 50.73 | H10: =Produktion[Std]*Produktion[Lohn] -> 38.752 | I10: =Produktion[Std]*Produktion[MSatz] -> 71.022 | J10: =Produktion[LKosten]+Produktion[MKosten] -> 109.774
A11: A | B11: 9 | C11: 14 | D11: 2.8 | E11: 9.22 | F11: 14 | G11: =VLOOKUP(Produktion[[#This Row],[MNr]],Maschinenkosten,2) -> 53.4 | H11: =Produktion[Std]*Produktion[Lohn] -> 25.816 | I11: =Produktion[Std]*Produktion[MSatz] -> 149.52 | J11: =Produktion[LKosten]+Produktion[MKosten] -> 175.336
A12: A | B12: 10 | C12: 2 | D12: 10.6 | E12: 57.02 | F12: 9 | G12: =VLOOKUP(Produktion[[#This Row],[MNr]],Maschinenkosten,2) -> 58.17 | H12: =Produktion[Std]*Produktion[Lohn] -> 604.412 | I12: =Produktion[Std]*Produktion[MSatz] -> 616.602 | J12: =Produktion[LKosten]+Produktion[MKosten] -> 1221.014
A13: A | B13: 11 | C13: 3 | D13: 5.9 | E13: 98.69 | F13: 1 | G13: =VLOOKUP(Produktion[[#This Row],[MNr]],Maschinenkosten,2) -> 31.25 | H13: =Produktion[Std]*Produktion[Lohn] -> 582.271 | I13: =Produktion[Std]*Produktion[MSatz] -> 184.375 | J13: =Produktion[LKosten]+Produktion[MKosten] -> 766.646
A14: A | B14: 12 | C14: 17 | D14: 18.7 | E14: 37.25 | F14: 17 | G14: =VLOOKUP(Produktion[[#This Row],[MNr]],Maschinenkosten,2) -> 33.87 | H14: =Produktion[Std]*Produktion[Lohn] -> 696.575 | I14: =Produktion[Std]*Produktion[MSatz] -> 633.369 | J14: =Produktion[LKosten]+Produktion[MKosten] -> 1329.944
A15: A | B15: 13 | C15: 1 | D15: 10.5 | E15: 21.45 | F15: 8 | G15: =VLOOKUP(Produktion[[#This Row],[MNr]],Maschinenkosten,2) -> 67.34 | H15: =Produktion[Std]*Produktion[Lohn] -> 225.225 | I15: =Produktion[Std]*Produktion[MSatz] -> 707.07 | J15: =Produktion[LKosten]+Produktion[MKosten] -> 932.295
A16: A | B16: 14 | C16: 2 | D16: 17.9 | E16: 1.57 | F16: 18 | G16: =VLOOKUP(Produktion[[#This Row],[MNr]],Maschinenkosten,2) -> 62.29 | H16: =Produktion[Std]*Produktion[Lohn] -> 28.103 | I16: =Produktion[Std]*Produktion[MSatz] -> 1114.991 | J16: =Produktion[LKosten]+Produktion[MKosten] -> 1143.094
A17: A | B17: 15 | C17: 9 | D17: 3.8 | E17: 2.39 | F17: 5 | G17: =VLOOKUP(Produktion[[#This Row],[MNr]],Maschinenkosten,2) -> 39.96 | H17: =Produktion[Std]*Produktion[Lohn] -> 9.082 | I17: =Produktion[Std]*Produktion[MSatz] -> 151.848 | J17: =Produktion[LKosten]+Produktion[MKosten] -> 160.93
A18: B | B18: 1 | C18: 17 | D18: 2.4 | E18: 96.02 | F18: 9 | G18: =VLOOKUP(Produktion[[#This Row],[MNr]],Maschinenkosten,2) -> 58.17 | H18: =Produktion[Std]*Produktion[Lohn] -> 230.448 | I18: =Produktion[Std]*Produktion[MSatz] -> 139.608 | J18: =Produktion[LKosten]+Produktion[MKosten] -> 370.056
A19: B | B19: 2 | C19: 19 | D19: 6.7 | E19: 51.6 | F19: 12 | G19: =VLOOKUP(Produktion[[#This Row],[MNr]],Maschinenkosten,2) -> 43.09 | H19: =Produktion[Std]*Produktion[Lohn] -> 345.72 | I19: =Produktion[Std]*Produktion[MSatz] -> 288.703 | J19: =Produktion[LKosten]+Produktion[MKosten] -> 634.423
A20: B | B20: 3 | C20: 0 | D20: 10.6 | E20: 20.37 | F20: 6 | G20: =VLOOKUP(Produktion[[#This Row],[MNr]],Maschinenkosten,2) -> 41.28 | H20: =Produktion[Std]*Produktion[Lohn] -> 215.922 | I20: =Produktion[Std]*Produktion[MSatz] -> 437.568 | J20: =Produktion[LKosten]+Produktion[MKosten] -> 653.49
A21: B | B21: 4 | C21: 8 | D21: 4.8 | E21: 29.28 | F21: 2 | G21: =VLOOKUP(Produktion[[#This Row],[MNr]],Maschinenkosten,2) -> 45.77 | H21: =Produktion[Std]*Produktion[Lohn] -> 140.544 | I21: =Produktion[Std]*Produktion[MSatz] -> 219.696 | J21: =Produktion[LKosten]+Produktion[MKosten] -> 360.24
A22: B | B22: 5 | C22: 14 | D22: 2.2 | E22: 16.38 | F22: 7 | G22: =VLOOKUP(Produktion[[#This Row],[MNr]],Maschinenkosten,2) -> 21.42 | H22: =Produktion[Std]*Produktion[Lohn] -> 36.036 | I22: =Produktion[Std]*Produktion[MSatz] -> 47.124 | J22: =Produktion[LKosten]+Produktion[MKosten] -> 83.16
A23: B | B23: 6 | C23: 14 | D23: 10.1 | E23: 87.71 | F23: 9 | G23: =VLOOKUP(Produktion[[#This Row],[MNr]],Maschinenkosten,2) -> 58.17 | H23: =Produktion[Std]*Produktion[Lohn] -> 885.871 | I23: =Produktion[Std]*Produktion[MSatz] -> 587.517 | J23: =Produktion[LKosten]+Produktion[MKosten] -> 1473.388
A24: B | B24: 7 | C24: 15 | D24: 1.4 | E24: 77.64 | F24: 13 | G24: =VLOOKUP(Produktion[[#This Row],[MNr]],Maschinenkosten,2) -> 53.76 | H24: =Produktion[Std]*Produktion[Lohn] -> 108.696 | I24: =Produktion[Std]*Produktion[MSatz] -> 75.264 | J24: =Produktion[LKosten]+Produktion[MKosten] -> 183.96
A25: C | B25: 1 | C25: 2 | D25: 2.2 | E25: 13.07 | F25: 17 | G25: =VLOOKUP(Produktion[[#This Row],[MNr]],Maschinenkosten,2) -> 33.87 | H25: =Produktion[Std]*Produktion[Lohn] -> 28.754 | I25: =Produktion[Std]*Produktion[MSatz] -> 74.514 | J25: =Produktion[LKosten]+Produktion[MKosten] -> 103.268
A26: C | B26: 2 | C26: 9 | D26: 19.8 | E26: 29.82 | F26: 11 | G26: =VLOOKUP(Produktion[[#This Row],[MNr]],Maschinenkosten,2) -> 30.73 | H26: =Produktion[Std]*Produktion[Lohn] -> 590.436 | I26: =Produktion[Std]*Produktion[MSatz] -> 608.454 | J26: =Produktion[LKosten]+Produktion[MKosten] -> 1198.89
A27: C | B27: 3 | C27: 14 | D27: 7.8 | E27: 47.73 | F27: 3 | G27: =VLOOKUP(Produktion[[#This Row],[MNr]],Maschinenkosten,2) -> 69.87 | H27: =Produktion[Std]*Produktion[Lohn] -> 372.294 | I27: =Produktion[Std]*Produktion[MSatz] -> 544.986 | J27: =Produktion[LKosten]+Produktion[MKosten] -> 917.28
A28: C | B28: 4 | C28: 8 | D28: 14.7 | E28: 13.95 | F28: 13 | G28: =VLOOKUP(Produktion[[#This Row],[MNr]],Maschinenkosten,2) -> 53.76 | H28: =Produktion[Std]*Produktion[Lohn] -> 205.065 | I28: =Produktion[Std]*Produktion[MSatz] -> 790.272 | J28: =Produktion[LKosten]+Produktion[MKosten] -> 995.337
A29: C | B29: 5 | C29: 7 | D29: 6.9 | E29: 79.97 | F29: 5 | G29: =VLOOKUP(Produktion[[#This Row],[MNr]],Maschinenkosten,2) -> 39.96 | H29: =Produktion[Std]*Produktion[Lohn] -> 551.793 | I29: =Produktion[Std]*Produktion[MSatz] -> 275.724 | J29: =Produktion[LKosten]+Produktion[MKosten] -> 827.517
A30: C | B30: 6 | C30: 18 | D30: 6.7 | E30: 27.53 | F30: 14 | G30: =VLOOKUP(Produktion[[#This Row],[MNr]],Maschinenkosten,2) -> 53.4 | H30: =Produktion[Std]*Produktion[Lohn] -> 184.451 | I30: =Produktion[Std]*Produktion[MSatz] -> 357.78 | J30: =Produktion[LKosten]+Produktion[MKosten] -> 542.231
A31: C | B31: 7 | C31: 0 | D31: 11.3 | E31: 70.7 | F31: 3 | G31: =VLOOKUP(Produktion[[#This Row],[MNr]],Maschinenkosten,2) -> 69.87 | H31: =Produktion[Std]*Produktion[Lohn] -> 798.91 | I31: =Produktion[Std]*Produktion[MSatz] -> 789.531 | J31: =Produktion[LKosten]+Produktion[MKosten] -> 1588.441
A32: C | B32: 8 | C32: 13 | D32: 11.3 | E32: 87.97 | F32: 12 | G32: =VLOOKUP(Produktion[[#This Row],[MNr]],Maschinenkosten,2) -> 43.09 | H32: =Produktion[Std]*Produktion[Lohn] -> 994.061 | I32: =Produktion[Std]*Produktion[MSatz] -> 486.917 | J32: =Produktion[LKosten]+Produktion[MKosten] -> 1480.978
A33: C | B33: 9 | C33: 8 | D33: 4.7 | E33: 28.97 | F33: 18 | G33: =VLOOKUP(Produktion[[#This Row],[MNr]],Maschinenkosten,2) -> 62.29 | H33: =Produktion[Std]*Produktion[Lohn] -> 136.159 | I33: =Produktion[Std]*Produktion[MSatz] -> 292.763 | J33: =Produktion[LKosten]+Produktion[MKosten] -> 428.922
A34: C | B34: 10 | C34: 4 | D34: 11.9 | E34: 58.61 | F34: 13 | G34: =VLOOKUP(Produktion[[#This Row],[MNr]],Maschinenkosten,2) -> 53.76 | H34: =Produktion[Std]*Produktion[Lohn] -> 697.459 | I34: =Produktion[Std]*Produktion[MSatz] -> 639.744 | J34: =Produktion[LKosten]+Produktion[MKosten] -> 1337.203
A35: C | B35: 11 | C35: 6 | D35: 2.6 | E35: 21.31 | F35: 16 | G35: =VLOOKUP(Produktion[[#This Row],[MNr]],Maschinenkosten,2) -> 30.78 | H35: =Produktion[Std]*Produktion[Lohn] -> 55.406 | I35: =Produktion[Std]*Produktion[MSatz] -> 80.028 | J35: =Produktion[LKosten]+Produktion[MKosten] -> 135.434
A36: D | B36: 1 | C36: 1 | D36: 4.8 | E36: 19.5 | F36: 1 | G36: =VLOOKUP(Produktion[[#This Row],[MNr]],Maschinenkosten,2) -> 31.25 | H36: =Produktion[Std]*Produktion[Lohn] -> 93.6 | I36: =Produktion[Std]*Produktion[MSatz] -> 150 | J36: =Produktion[LKosten]+Produktion[MKosten] -> 243.6
A37: D | B37: 2 | C37: 2 | D37: 5 | E37: 12.95 | F37: 15 | G37: =VLOOKUP(Produktion[[#This Row],[MNr]],Maschinenkosten,2) -> 50.73 | H37: =Produktion[Std]*Produktion[Lohn] -> 64.75 | I37: =Produktion[Std]*Produktion[MSatz] -> 253.65 | J37: =Produktion[LKosten]+Produktion[MKosten] -> 318.4
A38: D | B38: 3 | C38: 1 | D38: 18.2 | E38: 99.01 | F38: 6 | G38: =VLOOKUP(Produktion[[#This Row],[MNr]],Maschinenkosten,2) -> 41.28 | H38: =Produktion[Std]*Produktion[Lohn] -> 1801.982 | I38: =Produktion[Std]*Produktion[MSatz] -> 751.296 | J38: =Produktion[LKosten]+Produktion[MKosten] -> 2553.278
A39: D | B39: 4 | C39: 18 | D39: 9 | E39: 57.26 | F39: 13 | G39: =VLOOKUP(Produktion[[#This Row],[MNr]],Maschinenkosten,2) -> 53.76 | H39: =Produktion[Std]*Produktion[Lohn] -> 515.34 | I39: =Produktion[Std]*Produktion[MSatz] -> 483.84 | J39: =Produktion[LKosten]+Produktion[MKosten] -> 999.18
A40: D | B40: 5 | C40: 3 | D40: 11.3 | E40: 57.83 | F40: 18 | G40: =VLOOKUP(Produktion[[#This Row],[MNr]],Maschinenkosten,2) -> 62.29 | H40: =Produktion[Std]*Produktion[Lohn] -> 653.479 | I40: =Produktion[Std]*Produktion[MSatz] -> 703.877 | J40: =Produktion[LKosten]+Produktion[MKosten] -> 1357.356
A41: D | B41: 6 | C41: 11 | D41: 10.5 | E41: 5.8 | F41: 8 | G41: =VLOOKUP(Produktion[[#This Row],[MNr]],Maschinenkosten,2) -> 67.34 | H41: =Produktion[Std]*Produktion[Lohn] -> 60.9 | I41: =Produktion[Std]*Produktion[MSatz] -> 707.07 | J41: =Produktion[LKosten]+Produktion[MKosten] -> 767.97
A42: E | B42: 1 | C42: 15 | D42: 12.6 | E42: 59.56 | F42: 1 | G42: =VLOOKUP(Produktion[[#This Row],[MNr]],Maschinenkosten,2) -> 31.25 | H42: =Produktion[Std]*Produktion[Lohn] -> 750.456 | I42: =Produktion[Std]*Produktion[MSatz] -> 393.75 | J42: =Produktion[LKosten]+Produktion[MKosten] -> 1144.206
A43: E | B43: 2 | C43: 4 | D43: 3.1 | E43: 71 | F43: 2 | G43: =VLOOKUP(Produktion[[#This Row],[MNr]],Maschinenkosten,2) -> 45.77 | H43: =Produktion[Std]*Produktion[Lohn] -> 220.1 | I43: =Produktion[Std]*Produktion[MSatz] -> 141.887 | J43: =Produktion[LKosten]+Produktion[MKosten] -> 361.987
A44: E | B44: 3 | C44: 15 | D44: 19.2 | E44: 78.84 | F44: 19 | G44: =VLOOKUP(Produktion[[#This Row],[MNr]],Maschinenkosten,2) -> 51.47 | H44: =Produktion[Std]*Produktion[Lohn] -> 1513.728 | I44: =Produktion[Std]*Produktion[MSatz] -> 988.224 | J44: =Produktion[LKosten]+Produktion[MKosten] -> 2501.952
A45: E | B45: 4 | C45: 20 | D45: 6.5 | E45: 50.5 | F45: 12 | G45: =VLOOKUP(Produktion[[#This Row],[MNr]],Maschinenkosten,2) -> 43.09 | H45: =Produktion[Std]*Produktion[Lohn] -> 328.25 | I45: =Produktion[Std]*Produktion[MSatz] -> 280.085 | J45: =Produktion[LKosten]+Produktion[MKosten] -> 608.335
A46: E | B46: 5 | C46: 0 | D46: 0.8 | E46: 40.62 | F46: 15 | G46: =VLOOKUP(Produktion[[#This Row],[MNr]],Maschinenkosten,2) -> 50.73 | H46: =Produktion[Std]*Produktion[Lohn] -> 32.496 | I46: =Produktion[Std]*Produktion[MSatz] -> 40.584 | J46: =Produktion[LKosten]+Produktion[MKosten] -> 73.08
A47: E | B47: 6 | C47: 11 | D47: 12.8 | E47: 79.03 | F47: 2 | G47: =VLOOKUP(Produktion[[#This Row],[MNr]],Maschinenkosten,2) -> 45.77 | H47: =Produktion[Std]*Produktion[Lohn] -> 1011.584 | I47: =Produktion[Std]*Produktion[MSatz] -> 585.856 | J47: =Produktion[LKosten]+Produktion[MKosten] -> 1597.44
A48: E | B48: 7 | C48: 9 | D48: 15.1 | E48: 44.28 | F48: 13 | G48: =VLOOKUP(Produktion[[#This Row],[MNr]],Maschinenkosten,2) -> 53.76 | H48: =Produktion[Std]*Produktion[Lohn] -> 668.628 | I48: =Produktion[Std]*Produktion[MSatz] -> 811.776 | J48: =Produktion[LKosten]+Produktion[MKosten] -> 1480.404
A49: E | B49: 8 | C49: 6 | D49: 9.3 | E49: 29.42 | F49: 20 | G49: =VLOOKUP(Produktion[[#This Row],[MNr]],Maschinenkosten,2) -> 44.28 | H49: =Produktion[Std]*Produktion[Lohn] -> 273.606 | I49: =Produktion[Std]*Produktion[MSatz] -> 411.804 | J49: =Produktion[LKosten]+Produktion[MKosten] -> 685.41
A50: E | B50: 9 | C50: 12 | D50: 16 | E50: 93.79 | F50: 12 | G50: =VLOOKUP(Produktion[[#This Row],[MNr]],Maschinenkosten,2) -> 43.09 | H50: =Produktion[Std]*Produktion[Lohn] -> 1500.64 | I50: =Produktion[Std]*Produktion[MSatz] -> 689.44 | J50: =Produktion[LKosten]+Produktion[MKosten] -> 2190.08
A51: E | B51: 10 | C51: 9 | D51: 6.9 | E51: 22.3 | F51: 11 | G51: =VLOOKUP(Produktion[[#This Row],[MNr]],Maschinenkosten,2) -> 30.73 | H51: =Produktion[Std]*Produktion[Lohn] -> 153.87 | I51: =Produktion[Std]*Produktion[MSatz] -> 212.037 | J51: =Produktion[LKosten]+Produktion[MKosten] -> 365.907
A52: E | B52: 11 | C52: 6 | D52: 5.7 | E52: 49.37 | F52: 20 | G52: =VLOOKUP(Produktion[[#This Row],[MNr]],Maschinenkosten,2) -> 44.28 | H52: =Produktion[Std]*Produktion[Lohn] -> 281.409 | I52: =Produktion[Std]*Produktion[MSatz] -> 252.396 | J52: =Produktion[LKosten]+Produktion[MKosten] -> 533.805

Sheet Maschinenkosten
A1: MNr | B1: Stundensatz
A2: 1 | B2: 31.25
A3: 2 | B3: 45.77
A4: 3 | B4: 69.87
A5: 4 | B5: 55.26
A6: 5 | B6: 39.96
A7: 6 | B7: 41.28
A8: 7 | B8: 21.42
A9: 8 | B9: 67.34
A10: 9 | B10: 58.17
A11: 10 | B11: 53.98
A12: 11 | B12: 30.73
A13: 12 | B13: 43.09
A14: 13 | B14: 53.76
A15: 14 | B15: 53.4
A16: 15 | B16: 50.73
A17: 16 | B17: 30.78
A18: 17 | B18: 33.87
A19: 18 | B19: 62.29
A20: 19 | B20: 51.47
A21: 20 | B21: 44.28

Sheet Gesamtkosten
D3: Werte
A4: Produkt | B4: Bauteil | C4: Anzahl | D4: Summe von LKosten | E4: Summe von MKosten | F4: Summe von GKosten
A5: A | B5: 1 | C5: 4 | D5: 68.625 | E5: 99.9 | F5: 168.525
C6: 7 | D6: 104.3 | E6: 144.48 | F6: 248.78
B7: 2 | C7: 1 | D7: 298.936 | E7: 134.375 | F7: 433.311
B8: 3 | C8: 2 | D8: 335.764 | E8: 234.96 | F8: 570.724
B9: 4 | C9: 0 | D9: 393.921 | E9: 212.382 | F9: 606.303
B10: 5 | C10: 17 | D10: 815.86 | E10: 292.41 | F10: 1108.27
B11: 6 | C11: 1 | D11: 596.325 | E11: 234.375 | F11: 830.7
B12: 7 | C12: 7 | D12: 417.264 | E12: 243.504 | F12: 660.768
B13: 8 | C13: 19 | D13: 38.752 | E13: 71.022 | F13: 109.774
B14: 9 | C14: 14 | D14: 25.816 | E14: 149.52 | F14: 175.336
B15: 10 | C15: 2 | D15: 604.412 | E15: 616.602 | F15: 1221.014
B16: 11 | C16: 3 | D16: 582.271 | E16: 184.375 | F16: 766.646
B17: 12 | C17: 17 | D17: 696.575 | E17: 633.369 | F17: 1329.944
B18: 13 | C18: 1 | D18: 225.225 | E18: 707.07 | F18: 932.295
B19: 14 | C19: 2 | D19: 28.103 | E19: 1114.991 | F19: 1143.094
B20: 15 | C20: 9 | D20: 9.082 | E20: 151.848 | F20: 160.93
A21: A Ergebnis | D21: 5241.231 | E21: 5225.183 | F21: 10466.414
A22: B | B22: 1 | C22: 17 | D22: 230.448 | E22: 139.608 | F22: 370.056
B23: 2 | C23: 19 | D23: 345.72 | E23: 288.703 | F23: 634.423
B24: 3 | C24: 0 | D24: 215.922 | E24: 437.568 | F24: 653.49
B25: 4 | C25: 8 | D25: 140.544 | E25: 219.696 | F25: 360.24
B26: 5 | C26: 14 | D26: 36.036 | E26: 47.124 | F26: 83.16
B27: 6 | C27: 14 | D27: 885.871 | E27: 587.517 | F27: 1473.388
B28: 7 | C28: 15 | D28: 108.696 | E28: 75.264 | F28: 183.96
A29: B Ergebnis | D29: 1963.237 | E29: 1795.48 | F29: 3758.717
A30: C | B30: 1 | C30: 2 | D30: 28.754 | E30: 74.514 | F30: 103.268
B31: 2 | C31: 9 | D31: 590.436 | E31: 608.454 | F31: 1198.89
B32: 3 | C32: 14 | D32: 372.294 | E32: 544.986 | F32: 917.28
B33: 4 | C33: 8 | D33: 205.065 | E33: 790.272 | F33: 995.337
B34: 5 | C34: 7 | D34: 551.793 | E34: 275.724 | F34: 827.517
B35: 6 | C35: 18 | D35: 184.451 | E35: 357.78 | F35: 542.231
B36: 7 | C36: 0 | D36: 798.91 | E36: 789.531 | F36: 1588.441
B37: 8 | C37: 13 | D37: 994.061 | E37: 486.917 | F37: 1480.978
B38: 9 | C38: 8 | D38: 136.159 | E38: 292.763 | F38: 428.922
B39: 10 | C39: 4 | D39: 697.459 | E39: 639.744 | F39: 1337.203
B40: 11 | C40: 6 | D40: 55.406 | E40: 80.028 | F40: 135.434
A41: C Ergebnis | D41: 4614.788 | E41: 4940.713 | F41: 9555.501
A42: D | B42: 1 | C42: 1 | D42: 93.6 | E42: 150 | F42: 243.6
B43: 2 | C43: 2 | D43: 64.75 | E43: 253.65 | F43: 318.4
B44: 3 | C44: 1 | D44: 1801.982 | E44: 751.296 | F44: 2553.278
B45: 4 | C45: 18 | D45: 515.34 | E45: 483.84 | F45: 999.18
B46: 5 | C46: 3 | D46: 653.479 | E46: 703.877 | F46: 1357.356
B47: 6 | C47: 11 | D47: 60.9 | E47: 707.07 | F47: 767.97
A48: D Ergebnis | D48: 3190.051 | E48: 3049.733 | F48: 6239.784
A49: E | B49: 1 | C49: 15 | D49: 750.456 | E49: 393.75 | F49: 1144.206
B50: 2 | C50: 4 | D50: 220.1 | E50: 141.887 | F50: 361.987
B51: 3 | C51: 15 | D51: 1513.728 | E51: 988.224 | F51: 2501.952
B52: 4 | C52: 20 | D52: 328.25 | E52: 280.085 | F52: 608.335
B53: 5 | C53: 0 | D53: 32.496 | E53: 40.584 | F53: 73.08
B54: 6 | C54: 11 | D54: 1011.584 | E54: 585.856 | F54: 1597.44
B55: 7 | C55: 9 | D55: 668.628 | E55: 811.776 | F55: 1480.404
B56: 8 | C56: 6 | D56: 273.606 | E56: 411.804 | F56: 685.41
B57: 9 | C57: 12 | D57: 1500.64 | E57: 689.44 | F57: 2190.08
B58: 10 | C58: 9 | D58: 153.87 | E58: 212.037 | F58: 365.907
B59: 11 | C59: 6 | D59: 281.409 | E59: 252.396 | F59: 533.805
A60: E Ergebnis | D60: 6734.767 | E60: 4807.839 | F60: 11542.606
A61: Gesamtergebnis | D61: 21744.074 | E61: 19818.948 | F61: 41563.022
